bitfinex-derivatives/quotes_SOLF0:USTF0_20241105
["timestamp","ask_amount","ask_price","bid_price","bid_amount"]
[1730847335615,5.7342,167.01,166.92,2.9955]
[1730847335815,1.3161,167.0,166.92,2.9955]
[1730847338321,1.3161,167.0,166.89,3.08]
[1730847338517,1.3161,167.0,166.93,2.9952]
[1730847340524,1.3161,167.0,166.89,3.08]
[1730847340821,4.3961,167.0,166.89,3.08]
[1730847341220,4.3961,167.0,166.94,2.995]
[1730847343637,2.6542,167.01,166.89,3.08]
[1730847343846,5.7342,167.01,166.9,0.1382]
[1730847344342,5.7342,167.01,166.96,2.9947]
[1730847345456,3.08,167.02,166.97,2.9945]
[1730847348447,3.08,167.02,166.93,3.08]
[1730847348642,3.08,167.02,166.98,2.9944]
[1730847349448,38.4155079,167.05,166.98,2.9944]
[1730847349748,3.08,167.04,166.98,2.9944]
[1730847351745,38.4155079,167.05,166.98,2.9944]
[1730847351951,3.08,167.04,166.98,2.9944]
[1730847352547,38.4155079,167.05,166.98,2.9944]
[1730847352749,3.08,167.04,166.98,2.9944]
[1730847354152,38.4155079,167.05,166.98,2.9944]
[1730847354352,3.08,167.04,166.93,3.08]
[1730847354549,3.08,167.04,167.0,2.9941]
[1730847354747,3.08,167.04,166.93,3.08]
[1730847355254,3.08,167.04,166.99,2.9942]
[1730847356353,3.08,167.04,166.97,2.9946]
[1730847357554,3.08,167.04,166.98,2.9945]
[1730847360548,3.08,167.04,166.99,2.9942]
[1730847361457,38.4155079,167.05,166.99,2.9942]
[1730847362462,41.4955079,167.05,166.95,64.33176446]
[1730847362751,38.4155079,167.05,166.95,64.33176446]
[1730847363348,38.4155079,167.05,167.0,2.994]
[1730847363553,38.4155079,167.05,166.98,3.08]
[1730847363855,18.0,167.19,167.03,2.9935]
[1730847364058,5.7042,167.12,167.03,2.9935]
[1730847364659,2.6242,167.12,167.03,2.9935]
[1730847365053,3.08,167.11,167.03,2.9935]
[1730847365459,3.08,167.11,167.01,2.9938]
[1730847365761,3.08,167.11,166.98,3.08]
[1730847366264,3.08,167.11,167.03,2.9934]
[1730847366763,5.7042,167.12,167.02,3.08]
[1730847367665,2.6242,167.12,167.06,2.993]
[1730847368359,2.6242,167.12,167.07,2.9928]
[1730847370062,2.6242,167.12,167.02,3.08]
[1730847370063,0.88368,167.13,167.06,3.08]
[1730847370261,0.88368,167.13,167.07,3.08]
[1730847370472,0.88368,167.13,167.08,3.08]
[1730847370763,0.88368,167.13,167.09,64.27794598]
[1730847371656,0.88368,167.13,167.12,2.992]
[1730847372063,4.3722,167.23,167.12,3.08]
[1730847372271,1.2922,167.23,167.12,3.08]
[1730847373157,1.2922,167.23,167.17,2.991]
[1730847373662,1.2922,167.23,167.16,3.08]
[1730847373863,1.2922,167.23,167.16,6.0712]
[1730847374660,1.2922,167.23,167.16,3.08]
[1730847378767,1.2922,167.23,167.14,2.9915]
[1730847379167,1.2922,167.23,167.13,3.08]
[1730847379368,1.2922,167.23,167.16,2.9912]
[1730847383876,1.2922,167.23,167.13,3.08]
[1730847384879,1.2922,167.23,167.16,2.9912]
[1730847389373,2.6898,167.25,167.18,2.9908]
[1730847390375,2.6898,167.25,167.12,44.32061244]
[1730847390579,2.6898,167.25,167.13,3.08]
[1730847391082,2.6898,167.25,167.16,2.9912]
[1730847393084,5.7698,167.25,167.16,2.9912]
[1730847394680,5.7698,167.25,167.13,3.08]
[1730847395488,5.7698,167.25,167.16,2.9912]
[1730847399694,5.7698,167.25,167.17,2.9911]
[1730847400798,5.7698,167.25,167.16,2.9912]
[1730847408208,5.7698,167.25,167.13,3.08]
[1730847408796,2.6898,167.25,167.17,2.9909]
[1730847409000,2.6898,167.25,167.13,3.08]
[1730847409404,2.6898,167.25,167.2,2.9904]
[1730847409805,1.2997,167.27,167.2,2.9904]
[1730847410609,1.2997,167.27,167.18,2.9908]
[1730847413502,1.2997,167.27,167.17,2.9909]
[1730847413705,1.2997,167.27,167.14,3.08]
[1730847414910,1.2997,167.27,167.18,2.9907]
[1730847415505,1.2997,167.27,167.17,2.9909]
[1730847415708,1.2997,167.27,167.14,3.08]
[1730847416204,1.2997,167.27,167.18,2.9907]
[1730847416407,1.2997,167.27,167.14,3.08]
[1730847417109,1.2997,167.27,167.19,2.9907]
[1730847427314,1.2997,167.27,167.14,3.08]
[1730847427616,1.2997,167.27,167.2,2.9905]
[1730847431617,1.2997,167.27,167.17,3.08]
[1730847432010,1.2997,167.27,167.21,2.9902]
[1730847433109,1.2997,167.27,167.22,2.9901]
[1730847435305,7.35051607,167.26,167.22,2.9901]
[1730847439717,7.35051607,167.26,167.21,7.35051607]
[1730847439918,7.35051607,167.26,167.21,10.34081607]
[1730847442219,1.2997,167.27,167.22,2.99]
[1730847442516,7.35051607,167.26,167.22,2.99]
[1730847442712,1.2997,167.27,167.22,2.99]
[1730847442911,8.65021607,167.27,167.22,2.99]
[1730847443514,8.65021607,167.27,167.23,2.9899]
[1730847444523,55.61461837,167.28,167.23,7.35051607]
[1730847445020,62.96513444,167.28,167.24,2.9897]
[1730847445815,55.61461837,167.28,167.25,2.9896]
[1730847446218,1.3776,167.35,167.26,7.35051607]
[1730847446422,7.35051607,167.31,167.26,7.35051607]
[1730847446623,7.35051607,167.31,167.26,10.33981607]
[1730847446926,7.35051607,167.31,167.26,7.35051607]
[1730847447325,0.32013,167.36,167.29,7.35051607]
[1730847447520,0.32013,167.36,167.32,7.35051607]
[1730847449218,0.32013,167.36,167.32,10.33881607]
[1730847449422,7.67064607,167.36,167.31,7.35051607]
[1730847449623,0.32013,167.36,167.31,7.35051607]
[1730847449827,7.67064607,167.36,167.31,10.33901607]
[1730847450035,7.67064607,167.36,167.31,7.35051607]
[1730847450927,7.35051607,167.36,167.31,7.35051607]
[1730847456023,1.32,167.38,167.32,7.35051607]
[1730847456321,7.35051607,167.36,167.31,7.35051607]
[1730847456519,7.35051607,167.36,167.13,360.98]
[1730847456520,7.35051607,167.33,167.28,2.9889]
[1730847456722,7.35051607,167.33,167.29,7.35051607]
[1730847457229,7.35051607,167.35,167.29,7.35051607]
[1730847459130,7.35051607,167.35,167.29,10.33941607]
[1730847459822,1.32,167.38,167.29,10.33941607]
[1730847460034,7.35051607,167.35,167.29,10.33941607]
[1730847461228,1.32,167.38,167.29,10.33941607]
[1730847461431,7.35051607,167.35,167.29,10.33941607]
[1730847464326,1.32,167.38,167.29,10.33941607]
[1730847464527,7.35051607,167.35,167.29,10.33941607]
[1730847464730,2.662,167.4,167.34,7.35051607]
[1730847464937,10.01251607,167.4,167.34,7.35051607]
[1730847466036,2.662,167.4,167.31,3.06]
[1730847466337,7.35051607,167.37,167.32,7.35051607]
[1730847466742,7.35051607,167.37,167.32,10.33891607]
[1730847468334,7.35051607,167.37,167.32,7.35051607]
[1730847468931,7.35051607,167.36,167.29,2.9889]
[1730847469142,7.35051607,167.36,167.3,7.35051607]
[1730847471838,1.01624925,167.35,167.3,7.35051607]
[1730847472744,7.35051607,167.36,167.3,7.35051607]
[1730847472935,1.01625503,167.35,167.3,7.35051607]
[1730847473547,7.35051607,167.36,167.3,7.35051607]
[1730847473839,1.01625016,167.35,167.3,7.35051607]
[1730847477339,7.35051607,167.36,167.3,7.35051607]
[1730847477545,1.01625287,167.35,167.3,7.35051607]
[1730847477938,7.35051607,167.36,167.3,7.35051607]
[1730847478139,1.01625502,167.35,167.3,7.35051607]
[1730847478451,1.01625502,167.35,167.3,10.33921607]
[1730847479546,1.01625502,167.35,167.3,7.35051607]
[1730847479943,7.35051607,167.36,167.3,7.35051607]
[1730847480141,1.01624685,167.35,167.3,10.33911607]
[1730847480340,7.35051607,167.36,167.3,10.33911607]
[1730847480540,1.01624685,167.35,167.3,10.33911607]
[1730847480745,7.35051607,167.36,167.3,10.33911607]
[1730847480949,1.01624694,167.35,167.3,10.33911607]
[1730847482648,7.35051607,167.36,167.3,10.33911607]
[1730847484452,1.016247,167.35,167.3,10.33911607]
[1730847485350,7.35051607,167.36,167.3,10.33911607]
[1730847485537,1.01622823,167.35,167.3,10.33911607]
[1730847487438,8.71211607,167.37,167.3,10.33911607]
[1730847487741,1.01624178,167.36,167.3,10.33911607]
[1730847488342,1.01624192,167.35,167.3,10.33911607]
[1730847488539,8.71211607,167.37,167.3,10.33911607]
[1730847488752,1.0162468,167.36,167.3,10.33911607]
[1730847491443,1.01624674,167.35,167.3,10.33911607]
[1730847491646,9.54392642,167.36,167.3,10.33911607]
[1730847491949,1.01624673,167.35,167.3,10.33911607]
[1730847492248,1.3616,167.37,167.32,7.35051607]
[1730847492443,1.01622715,167.36,167.32,7.35051607]
[1730847493046,8.36674322,167.36,167.32,7.35051607]
[1730847493248,7.35051607,167.36,167.32,7.35051607]
[1730847493849,1.01622722,167.35,167.32,7.35051607]
[1730847494242,1.01622722,167.35,167.28,3.06]
[1730847494243,7.35051607,167.36,167.3,2.9886]
[1730847494443,1.01621492,167.35,167.31,7.35051607]
[1730847495347,7.35051607,167.36,167.31,7.35051607]
[1730847495548,1.01623533,167.35,167.31,10.33901607]
[1730847497141,8.71211607,167.37,167.32,7.35051607]
[1730847497346,1.01623531,167.36,167.32,7.35051607]
[1730847498861,1.01623531,167.36,167.32,10.33871607]
[1730847499157,1.01623509,167.35,167.32,7.35051607]
[1730847499356,8.71211607,167.37,167.32,7.35051607]
[1730847499560,1.01614855,167.36,167.32,7.35051607]
[1730847499749,8.71211607,167.37,167.32,7.35051607]
[1730847499956,1.01620741,167.36,167.32,7.35051607]
[1730847500250,9.54392642,167.42,167.35,10.33831607]
[1730847500451,0.41618,167.44,167.32,3.06]
[1730847500452,1.0159536,167.41,167.32,3.06]
[1730847500644,1.0159536,167.4,167.32,3.06]
[1730847500850,0.41618,167.44,167.32,3.06]
[1730847501054,1.01594735,167.43,167.32,3.06]
[1730847501357,1.01594735,167.43,167.39,2.987]
[1730847501559,1.01594735,167.43,167.32,3.06]
[1730847501760,1.01594735,167.43,167.4,7.35051607]
[1730847502761,1.01583701,167.42,167.4,7.35051607]
[1730847503063,1.01583701,167.41,167.4,7.35051607]
[1730847503359,18.18510667,167.44,167.4,10.33731607]
[1730847503560,1.01580885,167.43,167.41,7.35051607]
[1730847503861,2.6386,167.45,167.41,7.35051607]
[1730847503862,1.01580885,167.42,167.41,7.35051607]
[1730847504055,1.01580885,167.44,167.41,7.35051607]
[1730847504355,9.54392642,167.46,167.43,7.35051607]
[1730847504666,9.54392642,167.46,167.31,17.98]
[1730847504667,1.01560916,167.45,167.39,44.25204306]
[1730847504958,17.84468369,167.5,167.4,3.06]
[1730847505160,1.01554591,167.49,167.45,7.35051607]
[1730847505352,17.9099884,167.49,167.44,7.35051607]
[1730847505553,1.01554591,167.48,167.44,7.35051607]
[1730847506457,7.35051607,167.49,167.44,7.35051607]
[1730847506765,1.01543661,167.48,167.44,7.35051607]
[1730847507559,0.48657,167.52,167.47,7.35051607]
[1730847507759,1.01528594,167.51,167.47,7.35051607]
[1730847508480,7.83708607,167.52,167.46,10.41051607]
[1730847508661,7.35051607,167.49,167.39,44.25204306]
[1730847508852,7.35051607,167.49,167.4,3.06]
[1730847509050,2.5766,167.51,167.39,44.25204306]
[1730847509051,7.35051607,167.47,167.39,44.25204306]
[1730847509255,2.5766,167.51,167.41,7.35051607]
[1730847509461,4.07542435,167.5,167.41,7.35051607]
[1730847509658,7.35051607,167.47,167.41,7.35051607]
[1730847510258,7.35051607,167.45,167.4,7.35051607]
[1730847510852,7.35051607,167.45,167.39,44.25204306]
[1730847511057,7.35051607,167.45,167.4,7.35051607]
[1730847511858,7.35051607,167.45,167.39,44.25204306]
[1730847512058,7.35051607,167.45,167.39,51.60255913]
[1730847513654,3.06,167.5,167.39,51.60255913]
[1730847513858,7.35051607,167.44,167.39,51.60255913]
[1730847514066,7.35051607,167.44,167.39,7.35051607]
[1730847516165,7.35051607,167.44,167.4,7.35051607]
[1730847516761,7.35051607,167.44,167.38,2.9873]
[1730847516956,7.35051607,167.44,167.37,2.9873]
[1730847517158,2.5766,167.51,167.35,3.06]
[1730847517159,7.35051607,167.42,167.35,3.06]
[1730847517368,7.35051607,167.42,167.36,7.35051607]
[1730847517572,7.35051607,167.42,167.35,3.06]
[1730847517761,7.35051607,167.42,167.37,7.35051607]
[1730847518959,7.35051607,167.42,167.34,6.048]
[1730847519163,7.35051607,167.42,167.36,7.35051607]
[1730847520158,7.35051607,167.4,167.34,6.048]
[1730847520359,7.35051607,167.4,167.36,7.35051607]
[1730847521169,1.3183,167.43,167.36,7.35051607]
[1730847521368,7.35051607,167.41,167.34,6.0479]
[1730847521567,7.35051607,167.41,167.36,7.35051607]
[1730847521768,10.41051607,167.42,167.37,7.35051607]
[1730847522974,7.35051607,167.42,167.37,7.35051607]
[1730847524472,7.35051607,167.42,167.35,2.9878]
[1730847524674,7.35051607,167.42,167.36,7.35051607]
[1730847525463,7.35051607,167.41,167.36,7.35051607]
[1730847527574,7.35051607,167.42,167.38,7.35051607]
[1730847528272,1.3183,167.43,167.39,7.35051607]
[1730847528767,8.68681607,167.44,167.39,7.35051607]
[1730847529273,1.3363,167.44,167.39,7.35051607]
[1730847529582,1.3363,167.44,167.4,7.35051607]
[1730847529776,3.06,167.46,167.42,7.35051607]
[1730847530075,7.35051607,167.47,167.42,10.33711607]
[1730847530676,7.35051607,167.47,167.42,7.35051607]
[1730847530876,7.35051607,167.47,167.41,10.33721607]
[1730847531973,7.35051607,167.46,167.41,10.33721607]
[1730847534475,5.6852,167.49,167.41,10.33721607]
[1730847534670,7.35051607,167.45,167.41,10.33721607]
[1730847535078,7.35051607,167.45,167.41,2.9867]
[1730847535675,5.6852,167.49,167.41,2.9867]
[1730847535881,7.35051607,167.43,167.4,2.9869]
[1730847536074,7.35051607,167.43,167.31,5.9769]
[1730847536273,7.35051607,167.43,167.38,7.35051607]
[1730847536682,7.35051607,167.43,167.38,10.33771607]
[1730847537480,7.35051607,167.43,167.37,3.06]
[1730847537481,7.35051607,167.43,167.4,2.9869]
[1730847538276,7.35051607,167.45,167.4,2.9869]
[1730847540687,5.6852,167.49,167.4,2.9869]
[1730847540885,7.35051607,167.45,167.4,2.9869]
[1730847542085,2.6252,167.49,167.43,7.35051607]
[1730847542277,7.35051607,167.47,167.43,7.35051607]
[1730847542885,7.35051607,167.46,167.41,7.35051607]
[1730847543681,7.35051607,167.46,167.42,2.9866]
[1730847543886,7.35051607,167.46,167.41,7.35051607]
[1730847544885,7.35051607,167.46,167.41,10.33721607]
[1730847545080,7.35051607,167.46,167.41,7.35051607]
[1730847545882,7.35051607,167.46,167.42,2.9866]
[1730847546088,7.35051607,167.46,167.41,7.35051607]
[1730847547196,7.35051607,167.46,167.41,10.33711607]
[1730847549988,7.35051607,167.46,167.41,2.9866]
[1730847550198,3.06,167.48,167.43,7.35051607]
[1730847550393,7.35051607,167.47,167.43,7.35051607]
[1730847550600,7.35051607,167.46,167.42,2.9865]
[1730847551597,7.35051607,167.46,167.4,7.35051607]
[1730847552097,7.35051607,167.46,167.38,44.25385929]
[1730847552296,7.35051607,167.46,167.41,7.35051607]
[1730847552490,7.35051607,167.46,167.41,10.33721607]
[1730847552699,7.35051607,167.46,167.38,44.25385929]
[1730847552900,7.35051607,167.41,167.36,7.35051607]
[1730847553108,7.35051607,167.41,167.36,10.33801607]
[1730847554206,7.35051607,167.41,167.36,2.9875]
[1730847554404,1.3694,167.43,167.36,7.35051607]
[1730847554603,8.71991607,167.43,167.38,10.33781607]
[1730847555405,8.71991607,167.43,167.38,7.35051607]
[1730847555808,7.35051607,167.42,167.35,7.35051607]
[1730847556405,7.35051607,167.4,167.35,10.33821607]
[1730847556804,4.4294,167.43,167.37,7.35051607]
[1730847557005,11.77991607,167.43,167.37,10.33791607]
[1730847560413,11.77991607,167.43,167.37,7.35051607]
[1730847560720,11.77991607,167.43,167.38,2.9873]
[1730847561802,11.77991607,167.43,167.37,7.35051607]
[1730847563010,8.71991607,167.43,167.37,7.35051607]
[1730847563315,8.71991607,167.43,167.38,2.9873]
[1730847564118,8.71991607,167.43,167.34,47.31868445]
[1730847564119,1.3694,167.43,167.4,7.35051607]
[1730847564423,8.71991607,167.43,167.4,2.9869]
[1730847567007,7.35051607,167.43,167.4,2.9869]
[1730847567322,7.35051607,167.43,167.38,7.35051607]
[1730847567717,7.35051607,167.43,167.34,47.31868445]
[1730847567718,7.35051607,167.45,167.41,2.9867]
[1730847568615,7.35051607,167.46,167.42,2.9864]
[1730847569009,2.6198,167.48,167.41,7.35051607]
[1730847569322,7.35051607,167.47,167.41,7.35051607]
[1730847570318,7.35051607,167.47,167.42,2.9865]
[1730847571023,7.35051607,167.47,167.43,2.9864]
[1730847571220,7.35051607,167.47,167.42,7.35051607]
[1730847571817,7.35051607,167.47,167.44,2.9862]
[1730847579119,2.6198,167.48,167.44,2.9862]
[1730847579321,7.35051607,167.47,167.44,2.9862]
[1730847581820,7.35051607,167.47,167.43,2.9863]
[1730847582725,7.35051607,167.47,167.41,10.33711607]
[1730847582923,7.35051607,167.47,167.41,3.04]
[1730847583121,7.35051607,167.47,167.41,10.39051607]
[1730847583426,7.35051607,167.47,167.42,2.9864]
[1730847583928,7.35051607,167.47,167.41,10.39051607]
[1730847584129,7.35051607,167.47,167.43,2.9864]
[1730847588626,9.97031607,167.48,167.43,2.9864]
[1730847591834,9.97031607,167.48,167.44,2.9861]
[1730847593035,9.97031607,167.48,167.43,2.9863]
[1730847593431,9.97031607,167.48,167.43,202.9863]
[1730847594433,9.97031607,167.48,167.44,2.9861]
[1730847594636,9.97031607,167.48,167.43,200.0]
[1730847595236,9.97031607,167.48,167.45,2.9861]
[1730847599143,2.6198,167.48,167.46,2.9857]
[1730847599643,2.6198,167.48,167.45,7.35051607]
[1730847600238,2.6198,167.48,167.46,2.9858]
[1730847600650,2.6198,167.48,167.47,2.9857]
[1730847600947,1.3073,167.48,167.47,2.9857]
[1730847601244,5.6743,167.53,167.45,7.35051607]
[1730847601437,7.35051607,167.51,167.45,7.35051607]
[1730847601839,7.35051607,167.51,167.47,7.35051607]
[1730847602341,10.00961607,167.53,167.48,2.9854]
[1730847602641,10.00961607,167.53,167.47,7.35051607]
[1730847603246,7.35051607,167.51,167.45,7.35051607]
[1730847603747,7.35051607,167.51,167.47,2.9856]
[1730847604047,7.35051607,167.51,167.45,7.35051607]
[1730847604251,7.35051607,167.51,167.43,203.04]
[1730847604542,7.35051607,167.51,167.47,2.9856]
[1730847605736,7.35051607,167.51,167.46,7.35051607]
[1730847605938,2.6591,167.53,167.48,2.9855]
[1730847606146,7.35051607,167.49,167.43,200.0]
[1730847606348,7.35051607,167.49,167.43,210.39051607]
[1730847606536,7.35051607,167.49,167.45,2.9859]
[1730847607549,7.35051607,167.49,167.44,2.9862]
[1730847609241,1.2541,167.52,167.45,2.986]
[1730847609445,7.35051607,167.49,167.43,207.35051607]
[1730847611052,7.35051607,167.49,167.45,2.9859]
[1730847614358,7.35051607,167.47,167.43,200.0]
[1730847614560,3.04,167.51,167.43,200.0]
[1730847614858,7.35051607,167.46,167.43,200.0]
[1730847615452,7.35051607,167.46,167.43,202.9864]
[1730847615654,7.35051607,167.46,167.43,200.0]
[1730847615853,7.35051607,167.47,167.43,200.0]
[1730847617553,2.6813,167.46,167.43,200.0]
[1730847617947,7.35051607,167.44,167.43,200.0]
[1730847618146,7.35051607,167.44,167.43,193.7693]
[1730847620362,4.0306,167.46,167.43,193.7693]
[1730847620547,7.35051607,167.44,167.43,193.7693]
[1730847624051,7.35051607,167.44,167.43,191.6919]
[1730847638673,7.35051607,167.44,167.43,118.23274725]
[1730847638874,8.36598653,167.44,167.43,77.32653591]
[1730847639066,11.3673027,167.44,167.43,73.17353591]
[1730847639265,11.3673027,167.44,167.43,69.02053591]
[1730847639472,38.80384035,167.44,167.43,69.02053591]
[1730847640673,56.76384035,167.44,167.43,69.02053591]
[1730847641572,55.74836989,167.44,167.29,2.6915]
[1730847641776,7.35051607,167.31,167.29,2.6915]
[1730847641980,7.35051607,167.31,167.29,0.6915]
[1730847642272,3.04,167.34,167.29,0.6915]
[1730847643179,3.04,167.34,167.26,2.9895]
[1730847643379,7.35051607,167.28,167.26,2.9895]
[1730847644274,7.35051607,167.27,167.22,1.2902]
[1730847644877,7.35051607,167.27,167.22,4.2803]
[1730847645074,7.35051607,167.25,167.22,4.2803]
[1730847645278,7.35051607,167.25,167.22,1.2902]
[1730847645877,7.35051607,167.23,167.09,12.02541722]
[1730847646079,7.35051607,167.23,167.21,2.9903]
[1730847646473,7.35051607,167.22,167.1,1.2687]
[1730847646680,7.35051607,167.22,167.16,7.35051607]
[1730847646879,7.35051607,167.22,167.17,2.9909]
[1730847647181,7.35051607,167.22,167.17,4.2596]
[1730847647373,7.35051607,167.19,167.16,2.9912]
[1730847648784,3.04,167.21,167.16,7.35051607]
[1730847648986,7.35051607,167.21,167.18,2.9908]
[1730847649486,3.06426519,167.26,167.17,1.3296]
[1730847649788,7.35051607,167.22,167.18,7.35051607]
[1730847649977,3.04,167.24,167.2,2.9904]
[1730847650181,1.9914,167.33,167.2,2.9904]
[1730847650182,7.35051607,167.23,167.2,2.9904]
[1730847650675,17.96,167.48,167.21,3.04]
[1730847650877,7.35051607,167.36,167.31,7.35051607]
[1730847651680,7.35051607,167.36,167.32,2.9884]
[1730847651880,7.35051607,167.35,167.3,3.04]
[1730847652282,7.35051607,167.35,167.3,6.0287]
[1730847652888,7.35051607,167.35,167.3,2.9887]
[1730847653282,7.35051607,167.35,167.3,6.0287]
[1730847655488,7.35051607,167.35,167.31,2.9886]
[1730847660090,7.35051607,167.35,167.3,2.9886]
[1730847660288,7.35051607,167.35,167.29,10.39051607]
[1730847660987,7.35051607,167.35,167.31,2.9885]
[1730847661489,7.35051607,167.35,167.29,10.39051607]
[1730847661687,7.35051607,167.35,167.32,2.9884]
[1730847662080,7.35051607,167.35,167.29,10.39051607]
[1730847662285,7.35051607,167.35,167.31,2.9885]
[1730847662788,7.35051607,167.35,167.29,10.39051607]
[1730847662789,3.04,167.39,167.32,7.35051607]
[1730847662986,3.04,167.39,167.29,3.04]
[1730847662987,7.35051607,167.39,167.34,7.35051607]
[1730847663894,7.35051607,167.36,167.32,3.04]
[1730847664089,7.35051607,167.36,167.32,6.0284]
[1730847664291,7.35051607,167.36,167.3,11.27191607]
[1730847664491,7.35051607,167.36,167.31,3.04]
[1730847665492,7.35051607,167.36,167.33,2.9882]
[1730847665887,7.35051607,167.36,167.31,6.0284]
[1730847667195,7.35051607,167.36,167.32,2.9883]
[1730847668297,7.35051607,167.34,167.3,11.27191607]
[1730847668497,7.35051607,167.34,167.3,3.9214]
[1730847669198,7.35051607,167.34,167.3,6.91]
[1730847669393,7.35051607,167.34,167.3,3.9214]
[1730847669595,7.35051607,167.31,167.28,44.2772915]
[1730847670487,7.35051607,167.31,167.22,3.8881]
[1730847670798,7.35051607,167.26,167.23,7.35051607]
[1730847670991,7.35051607,167.26,167.23,2.99]
[1730847671300,7.35051607,167.24,167.22,3.8881]
[1730847671798,7.35051607,167.24,167.22,1.2655]
[1730847672294,7.35051607,167.23,167.21,2.9903]
[1730847672499,7.35051607,167.23,167.18,10.39051607]
[1730847672891,7.35051607,167.21,167.17,7.35051607]
[1730847673093,7.35051607,167.21,167.15,10.03211607]
[1730847673289,7.35051607,167.19,167.15,2.6816]
[1730847673601,7.35051607,167.19,167.16,2.9911]
[1730847674187,7.35051607,167.19,167.15,10.03211607]
[1730847674387,7.35051607,167.19,167.16,2.9912]
[1730847675287,7.35051607,167.19,167.18,2.9909]
[1730847675491,7.35051607,167.19,167.15,10.03211607]
[1730847675902,7.35051607,167.19,167.16,2.9912]
[1730847677400,7.35051607,167.19,167.15,4.3582]
[1730847678004,7.35051607,167.19,167.15,1.3668]
[1730847679004,3.9214,167.28,167.15,1.3668]
[1730847679208,7.35051607,167.21,167.18,2.9908]
[1730847679406,7.35051607,167.21,167.17,7.35051607]
[1730847679601,7.35051607,167.21,167.16,7.35051607]
[1730847679996,7.35051607,167.21,167.17,7.35051607]
[1730847680307,7.35051607,167.21,167.17,10.34141607]
[1730847680699,7.35051607,167.21,167.17,2.9909]
[1730847681701,7.35051607,167.2,167.17,2.9909]
[1730847681902,7.35051607,167.2,167.18,2.9908]
[1730847682605,7.35051607,167.2,167.17,2.991]
[1730847683003,7.35051607,167.2,167.15,7.35051607]
[1730847683202,7.35051607,167.2,167.17,2.9911]
[1730847686013,7.35051607,167.2,167.15,7.35051607]
[1730847686607,7.35051607,167.2,167.17,2.9909]
[1730847690621,7.35051607,167.2,167.14,51.66040679]
[1730847691221,3.04,167.23,167.14,44.30989072]
[1730847691222,7.35051607,167.18,167.14,44.30989072]
[1730847691815,7.35051607,167.18,167.16,2.9911]
[1730847692015,7.35051607,167.18,167.14,44.30989072]
[1730847692308,7.35051607,167.18,167.16,2.9911]
[1730847693214,7.35051607,167.18,167.17,2.9911]
[1730847701019,7.35051607,167.18,167.14,44.30989072]
[1730847701722,7.35051607,167.18,167.16,2.9912]
[1730847701924,7.35051607,167.18,167.14,44.30989072]
[1730847702322,7.35051607,167.18,167.17,2.9911]
[1730847703321,7.35051607,167.18,167.14,44.30989072]
[1730847703533,7.35051607,167.18,167.16,2.9912]
[1730847705020,7.35051607,167.17,167.14,44.30989072]
[1730847705329,7.35051607,167.17,167.16,2.9912]
[1730847707822,7.35051607,167.17,167.12,3.9517]
[1730847708024,5.97416532,167.19,167.14,2.9915]
[1730847708229,3.04,167.19,167.14,2.9915]
[1730847708724,6.02473889,167.19,167.14,2.9915]
[1730847709230,7.35051607,167.15,167.14,2.9915]
[1730847712233,7.35051607,167.16,167.14,2.9915]
[1730847712729,7.35051607,167.16,167.15,2.9914]
[1730847714528,1.2615,167.22,167.13,7.35051607]
[1730847714723,7.35051607,167.18,167.17,2.9911]
[1730847716329,2.5727,167.26,167.17,7.35051607]
[1730847716330,7.35051607,167.24,167.17,7.35051607]
[1730847716640,7.35051607,167.24,167.18,7.35051607]
[1730847717233,7.35051607,167.24,167.23,2.99]
[1730847719137,7.35051607,167.24,167.22,2.9901]
[1730847720634,0.23041,167.27,167.22,2.9901]
[1730847721634,7.35051607,167.24,167.22,2.9901]
[1730847722240,0.23041,167.27,167.25,2.9895]
[1730847722443,0.23041,167.27,167.22,7.35051607]
[1730847722630,7.58092607,167.27,167.22,7.35051607]
[1730847722830,7.35051607,167.25,167.23,2.9899]
[1730847723033,7.35051607,167.25,167.21,1.3522]
[1730847723543,7.35051607,167.25,167.24,2.9898]
[1730847728640,0.23041,167.27,167.25,2.9896]
[1730847729641,0.23041,167.27,167.21,1.3522]
[1730847729950,7.35051607,167.23,167.21,1.3522]
[1730847730144,7.35051607,167.23,167.22,2.9902]
[1730847730348,7.35051607,167.24,167.21,1.3522]
[1730847730942,0.23041,167.27,167.21,8.70271607]